bitfinex/quotes_ETHUSD_20250822
["timestamp","ask_amount","ask_price","bid_price","bid_amount"]
[1755902254228,3.745,4812.9,4812.4,0.4722]
[1755902254530,3.745,4812.9,4812.5,0.4722]
[1755902255131,3.636,4812.8,4812.5,0.4722]
[1755902256447,3.636,4812.8,4812.3,0.104]
[1755902256835,3.636,4812.8,4812.3,0.5762]
[1755902257028,0.099,4812.4,4812.3,0.104]
[1755902257332,5.33,4812.4,4811.8,0.124]
[1755902261211,5.33,4812.4,4812.0,0.001]
[1755902261512,1.597,4812.4,4812.3,0.3971]
[1755902261711,5.225,4812.4,4812.3,24.6433]
[1755902262038,5.225,4812.4,4812.3,19.8043]
[1755902262533,1.597,4812.4,4812.3,19.8043]
[1755902262700,5.223,4812.4,4812.3,19.8043]
[1755902263110,1.597,4812.4,4812.3,19.8043]
[1755902263307,5.223,4812.4,4812.3,19.8043]
[1755902263532,5.223,4812.4,4812.3,18.9363]
[1755902264130,5.322,4812.4,4812.0,0.001]
[1755902264722,1.597,4812.4,4812.3,0.2931]
[1755902264940,5.228,4812.4,4812.3,0.7653]
[1755902265524,5.228,4812.4,4812.3,0.2931]
[1755902265713,5.228,4812.4,4812.0,0.001]
[1755902265914,5.327,4812.4,4812.0,0.001]
[1755902266136,0.3713,4812.3,4812.0,0.001]
[1755902266463,0.1017,4812.1,4812.0,0.001]
[1755902269558,0.4703,4812.1,4812.0,0.001]
[1755902269942,0.1017,4812.1,4812.0,0.001]
[1755902270447,0.66,4811.8,4809.2,0.10497494]
[1755902270613,0.66,4811.8,4808.8,0.12858829]
[1755902270614,0.9607,4810.1,4808.8,0.02]
[1755902270814,1.8977,4810.1,4808.9,0.4305]
[1755902271049,5.6057,4810.1,4808.9,0.4305]
[1755902271261,6.59412605,4810.1,4808.8,0.02]
[1755902271622,11.58612605,4810.1,4808.8,0.02]
[1755902272315,0.66,4810.0,4808.8,0.02]
[1755902272559,4.0137,4809.9,4808.8,0.02]
[1755902272855,4.1843,4809.9,4808.8,0.02]
[1755902273261,0.4713,4809.9,4808.8,0.02]
[1755902273419,4.0137,4809.9,4808.8,0.02]
[1755902273758,4.1833,4809.9,4808.8,0.02]
[1755902274052,4.1823,4809.9,4808.8,0.02]
[1755902274222,4.1157,4809.9,4808.8,0.02]
[1755902274642,0.104,4809.9,4809.8,0.3336]
[1755902274843,1.597,4810.4,4809.8,8.9881]
[1755902275039,3.717,4810.3,4809.8,0.7641]
[1755902275266,3.717,4810.3,4809.9,0.4305]
[1755902275565,3.717,4810.3,4810.2,0.3136]
[1755902275767,2.596,4815.3,4810.2,0.7441]
[1755902276053,5.316,4812.3,4811.8,0.02]
[1755902277473,0.66,4812.2,4811.8,0.02]
[1755902277847,3.718,4812.1,4811.8,0.02]
[1755902278838,0.099,4811.9,4811.8,0.02]
[1755902279233,0.759,4811.9,4811.8,0.02]
[1755902279455,1.1293,4811.9,4811.8,0.02]
[1755902280367,11.1293,4811.9,4811.8,0.02]
[1755902281576,0.66,4811.8,4810.8,0.001]
[1755902281781,0.1017,4810.9,4810.8,0.001]
[1755902282075,6.0667,4810.9,4810.8,0.001]
[1755902282296,3.66,4810.8,4809.8,0.02]
[1755902282590,16.67382123,4809.9,4809.8,0.02]
[1755902282792,26.97682123,4809.9,4809.8,0.02]
[1755902283092,26.97582123,4809.9,4809.8,0.02]
[1755902283453,26.97482123,4809.9,4809.8,0.02]
[1755902284068,23.26482123,4809.9,4809.8,0.02]
[1755902284494,26.97282123,4809.9,4809.8,0.02]
[1755902284872,27.07682123,4809.9,4809.8,0.02]
[1755902285347,23.36882123,4809.9,4809.8,0.02]
[1755902285678,27.07582123,4809.9,4809.8,0.02]
[1755902285875,23.36882123,4809.9,4809.8,0.02]
[1755902286052,27.07382123,4809.9,4809.8,0.02]
[1755902286249,27.43872123,4809.9,4809.8,0.02]
[1755902286450,37.43872123,4809.9,4809.8,0.02]
[1755902286876,33.73372123,4809.9,4809.8,0.02]
[1755902287071,37.07382123,4809.9,4809.8,0.02]
[1755902287294,37.07182123,4809.9,4809.8,0.02]
[1755902287448,27.07182123,4809.9,4809.8,0.02]
[1755902288362,23.36882123,4809.9,4809.8,0.02]
[1755902288785,27.06782123,4809.9,4809.8,0.02]
[1755902289856,23.36882123,4809.9,4809.8,0.02]
[1755902290406,27.06582123,4809.9,4809.8,0.02]
[1755902292296,27.06082123,4809.9,4809.8,0.02]
[1755902296785,7.355,4809.9,4809.8,0.7641]
[1755902296979,6.695,4809.9,4809.8,0.7641]
[1755902297186,10.378,4809.9,4809.8,0.7641]
[1755902297489,10.274,4809.9,4809.8,0.7641]
[1755902297698,10.378,4809.9,4809.8,0.7641]
[1755902298381,10.378,4809.9,4809.8,0.02]
[1755902299406,10.378,4809.9,4809.8,0.324]
[1755902299820,10.374,4809.9,4809.8,0.7803]
[1755902300122,10.374,4809.9,4809.8,0.67188075]
[1755902300410,6.695,4809.9,4809.8,0.67188075]
[1755902300818,10.372,4809.9,4809.8,0.67188075]
[1755902301633,6.695,4809.9,4809.8,0.67188075]
[1755902301818,10.369,4809.9,4809.8,0.67188075]
[1755902302683,6.695,4809.9,4809.8,0.67188075]
[1755902303421,10.367,4809.9,4809.8,0.67188075]
[1755902305123,10.367,4809.9,4809.3,0.001]
[1755902305289,10.367,4809.9,4809.8,0.304]
[1755902305487,10.367,4809.9,4809.8,0.7603]
[1755902308096,6.695,4809.9,4809.8,0.7603]
[1755902308293,6.591,4809.9,4809.8,0.7603]
[1755902308488,10.253,4809.9,4809.8,0.7603]
[1755902308691,5.26,4809.9,4809.8,0.7603]
[1755902308890,5.26,4809.9,4809.8,0.7613]
[1755902309143,1.598,4809.9,4809.8,0.7613]
[1755902309322,5.26,4809.9,4809.8,0.7613]
[1755902309823,1.598,4809.9,4809.8,0.7613]
[1755902309999,5.258,4809.9,4809.8,0.7613]
[1755902311824,5.258,4809.9,4809.8,0.305]
[1755902312013,5.362,4809.9,4809.8,0.001]
[1755902313199,5.362,4809.9,4809.8,0.305]
[1755902314329,5.362,4809.9,4809.8,0.001]
[1755902314330,5.3666,4809.9,4809.8,0.001]
[1755902315737,1.702,4809.9,4809.8,0.001]
[1755902315941,5.355,4809.9,4809.8,0.001]
[1755902316425,1.702,4809.9,4809.8,0.001]
[1755902316651,5.354,4809.9,4809.8,0.001]
[1755902317423,5.353,4809.9,4809.8,0.001]
[1755902317964,1.702,4809.9,4809.8,0.001]
[1755902318340,6.0201,4809.9,4809.8,0.001]
[1755902318542,6.4715,4809.9,4809.8,0.001]
[1755902319167,0.66,4809.8,4804.2,11.44]
[1755902319325,0.66,4808.3,4805.6,0.4563]
[1755902319524,0.66,4808.1,4805.7,30.0]
[1755902319724,0.66,4808.1,4805.8,0.47710819]
[1755902319961,3.656,4808.0,4805.9,40.0]
[1755902320160,3.656,4808.0,4806.0,0.4563]
[1755902320333,3.656,4808.0,4806.1,10.0]
[1755902320533,0.66,4807.9,4806.2,10.4563]
[1755902320756,0.66,4807.7,4806.3,40.4563]
[1755902320958,0.66,4807.7,4807.6,0.304]
[1755902321162,4.317,4807.7,4807.6,0.304]
[1755902321476,4.317,4807.7,4807.6,0.7603]
[1755902322336,3.657,4807.7,4807.6,0.7603]
[1755902322536,2.222778,4808.2,4807.6,0.7603]
[1755902322739,4.314,4808.1,4807.6,0.7603]
[1755902322926,4.314,4808.1,4807.6,0.304]
[1755902323130,17.23723902,4808.1,4807.6,0.304]
[1755902323579,0.0044,4807.7,4804.6,0.15930378]
[1755902323733,0.66,4807.2,4806.2,0.4563]
[1755902323934,5.252,4807.1,4806.2,0.4563]
[1755902324458,4.2,4807.0,4806.2,0.4563]
[1755902324765,9.452,4807.1,4806.2,0.4563]
[1755902325266,12.92323902,4806.7,4806.2,0.4563]
[1755902325438,3.653,4806.6,4806.2,0.4563]
[1755902325639,3.653,4806.6,4803.8,1.248]
[1755902325836,3.653,4806.6,4805.7,0.4563]
[1755902327188,3.653,4806.6,4803.5,0.15796476]
[1755902327339,12.92323902,4806.0,4803.6,30.4563]
[1755902327538,5.247,4805.9,4803.7,30.4563]
[1755902327788,5.247,4805.9,4803.5,0.15796476]
[1755902327789,5.247,4805.9,4803.8,30.4563]
[1755902328068,12.92323902,4805.7,4803.9,30.4563]
[1755902328257,12.92323902,4805.7,4804.7,0.001]
[1755902328443,12.92323902,4805.7,4804.8,0.4291]
[1755902328648,3.648,4805.6,4804.8,0.4291]
[1755902328870,3.648,4805.6,4805.5,0.3159]
[1755902329194,3.6514,4805.6,4805.5,0.745]
[1755902329352,0.66,4805.4,4799.2,1.248]
[1755902329556,0.66,4803.8,4800.1,47.37317191]
[1755902329754,14.997,4805.6,4803.8,19.163]
[1755902329755,1.599,4804.7,4803.8,19.163]
[1755902330072,14.997,4805.6,4804.7,30.0]
[1755902330073,3.774,4805.2,4804.7,30.0]
[1755902330282,10.0,4805.6,4805.2,30.0]
[1755902330486,3.786,4806.1,4805.5,0.3159]
[1755902330639,3.786,4806.0,4805.5,0.3159]
[1755902330839,12.92323902,4806.3,4805.5,0.3159]
[1755902330840,3.787,4805.9,4805.6,0.4291]
[1755902331084,1.599,4805.8,4805.6,0.4291]
[1755902331288,3.789,4805.7,4804.8,0.4291]
[1755902331441,16.71223902,4805.7,4804.4,0.4291]
[1755902332258,12.92323902,4805.2,4804.4,0.4291]
[1755902332460,3.786,4805.1,4804.4,0.4291]
[1755902333256,10.13871804,4804.8,4803.4,0.4291]
[1755902333493,10.13871804,4804.0,4802.8,0.4291]
[1755902333694,5.385,4803.9,4803.5,0.4291]
[1755902333955,5.385,4803.9,4803.6,0.4291]
[1755902334177,5.385,4803.9,4803.8,0.3159]
[1755902335594,5.385,4803.9,4803.3,0.4291]
[1755902336192,3.779,4803.8,4803.3,0.4291]
[1755902336593,3.779,4803.8,4803.4,0.4291]
[1755902336893,3.779,4803.7,4803.5,0.4291]
[1755902337103,3.779,4803.6,4801.5,1.599]
[1755902337266,1.599,4803.9,4803.6,0.3159]
[1755902337608,3.777,4803.8,4803.6,0.3159]
[1755902338079,3.777,4803.8,4803.6,0.745]
[1755902338394,1.599,4803.9,4803.7,0.4291]
[1755902338594,3.776,4803.8,4803.7,0.4291]
[1755902338796,3.776,4803.8,4801.5,1.70444275]
[1755902338982,3.776,4803.8,4803.7,0.3159]
[1755902339477,3.776,4803.8,4803.7,0.745]
[1755902339804,3.776,4803.8,4803.7,0.849]
[1755902340158,1.599,4803.9,4803.7,0.849]
[1755902340400,1.599,4803.9,4803.8,30.4291]
[1755902340608,1.599,4805.2,4803.8,30.745]
[1755902340760,1.599,4805.2,4803.9,30.0]
[1755902340961,0.099,4803.9,4801.9,0.4291]
[1755902341185,0.099,4803.9,4799.8,0.2279]
[1755902341186,10.13871804,4802.7,4801.6,0.4291]
[1755902341392,5.379,4802.6,4801.7,30.02082595]
[1755902341698,5.379,4802.6,4802.5,0.3159]
[1755902341699,1.599,4802.6,4802.5,0.3159]
[1755902342063,1.599,4802.6,4802.5,0.745]
[1755902342396,5.383,4802.6,4802.5,0.745]
[1755902342698,3.784,4803.4,4802.5,0.745]
[1755902342999,3.784,4803.7,4803.4,30.0]
[1755902343168,3.784,4804.0,4803.7,30.0]
[1755902343360,1.599,4804.5,4804.0,30.0]
[1755902343567,3.783,4804.4,4802.4,2.847]
[1755902343767,3.783,4804.4,4802.5,30.4291]
[1755902343969,10.13871804,4804.2,4802.6,30.44992205]
[1755902344289,10.13871804,4804.2,4802.6,0.4291]
[1755902344599,10.13871804,4804.2,4802.7,30.02082162]
[1755902344800,10.13871804,4804.2,4802.8,29.43263768]
[1755902345003,1.599,4804.5,4802.9,30.44992075]
[1755902345168,1.599,4804.5,4803.0,30.4291]
[1755902345373,3.795,4804.4,4803.1,30.4291]
[1755902345683,3.795,4804.4,4803.2,30.0]
[1755902346281,3.795,4804.4,4803.2,26.465]
[1755902346482,3.795,4804.4,4803.2,30.0]
[1755902348030,0.04,4803.8,4803.3,0.4291]
[1755902348235,0.04,4803.8,4803.7,0.3159]
[1755902348535,3.83,4803.8,4803.7,0.745]
[1755902348733,0.04,4803.8,4803.7,0.745]
[1755902348914,3.827,4803.8,4803.7,0.745]
[1755902349739,3.824,4803.8,4803.7,0.745]
[1755902350343,3.824,4803.8,4803.7,0.849]
[1755902350843,0.04,4803.8,4803.7,30.849]
[1755902352532,0.04,4803.8,4803.7,30.745]
[1755902352845,3.777,4804.1,4803.7,30.745]
[1755902353072,5.375,4804.5,4803.8,30.4291]
[1755902353222,5.375,4804.5,4804.4,0.3159]
[1755902353429,5.375,4804.5,4804.4,30.3159]
[1755902353624,5.375,4804.5,4804.4,30.745]
[1755902353818,0.02,4804.8,4804.4,30.745]
[1755902354013,0.02,4804.8,4804.5,30.44991382]
[1755902354219,0.02,4804.8,4804.7,0.3159]
[1755902354423,0.02,4804.8,4804.7,30.3159]
[1755902354618,0.02,4804.8,4804.7,30.745]
[1755902356528,0.02,4804.8,4804.7,13.441]
[1755902357530,0.02,4804.8,4804.7,30.745]
[1755902359870,0.02,4806.8,4804.8,0.66]
[1755902360051,0.02,4806.8,4805.9,1.248]
[1755902360254,0.002,4807.1,4806.7,0.3029]
[1755902360534,0.4604,4809.6,4807.2,1.248]
[1755902360535,1.599,4809.6,4807.2,1.248]
[1755902360752,1.599,4809.6,4807.7,0.3029]
[1755902360951,5.38,4809.6,4807.7,35.54469996]
[1755902361272,5.38,4809.6,4807.7,35.9884]
[1755902361747,5.38,4809.6,4807.7,32.2074]
[1755902361946,0.4688,4809.3,4807.7,31.7429]
[1755902362547,0.4688,4809.3,4807.7,31.8469]
[1755902363073,0.4688,4809.3,4807.7,32.3114]
[1755902363270,5.38,4809.6,4807.7,32.3114]
[1755902363472,3.775,4809.3,4807.7,32.3114]
[1755902363639,0.4688,4810.4,4807.7,32.3114]
[1755902363838,0.4688,4810.4,4807.7,36.0864]
[1755902364037,5.374,4810.6,4807.9,0.66]
[1755902364239,5.374,4810.6,4808.7,0.4069]
[1755902364457,0.002,4810.9,4808.7,34.20469564]
[1755902364654,0.002,4810.9,4808.8,30.4852952]
[1755902364899,0.002,4810.9,4809.8,0.4069]
[1755902365062,0.002,4810.9,4809.8,30.4069]
[1755902365266,0.002,4810.9,4809.8,30.8714]
[1755902366793,0.002,4810.9,4809.8,34.6454]
[1755902369504,0.002,4810.9,4809.8,34.1759]
[1755902369673,0.002,4810.9,4809.8,33.872]
[1755902371292,0.002,4810.9,4809.8,34.1749]
[1755902371611,0.002,4810.9,4809.8,34.6394]
[1755902371809,0.002,4810.9,4809.8,34.1689]
[1755902372030,0.002,4810.9,4809.8,33.865]
[1755902372228,0.002,4810.9,4809.8,34.6324]
[1755902373003,0.002,4810.9,4809.8,30.8714]
[1755902373511,0.002,4810.9,4809.8,34.1649]
[1755902373907,0.002,4810.9,4809.8,34.6294]
[1755902374832,0.002,4810.9,4809.8,34.712608]
[1755902376009,0.002,4810.9,4809.8,30.954608]
[1755902376207,0.002,4810.9,4809.8,34.6254]
[1755902377751,0.002,4810.4,4809.8,34.6254]
[1755902378654,0.002,4810.4,4809.8,34.6204]
[1755902379028,0.002,4810.4,4809.8,34.77882909]
[1755902379460,0.002,4810.4,4809.8,34.77782909]
[1755902380022,0.002,4810.4,4809.8,31.02982909]
[1755902380454,0.002,4810.4,4809.8,34.77482909]
[1755902381653,0.002,4810.4,4809.8,30.0]
[1755902381822,0.002,4810.4,4809.8,3.741]
[1755902382472,0.002,4810.4,4809.8,33.741]
[1755902383533,0.002,4810.4,4809.8,34.0439]
[1755902383838,0.002,4810.4,4809.8,33.738]
[1755902384224,0.002,4810.4,4809.8,30.0]
[1755902384474,0.3021,4809.9,4809.8,3.738]
[1755902385279,0.3021,4809.9,4809.8,33.738]
[1755902386077,0.3021,4809.9,4805.5,0.10561525]
[1755902386078,0.66,4809.6,4805.5,0.10561525]
[1755902386391,0.66,4806.9,4804.8,0.02]
[1755902386571,1.597,4806.9,4805.1,0.23]
[1755902386770,1.597,4806.9,4805.2,0.02081078]
[1755902387656,1.597,4806.9,4805.1,0.02081122]
[1755902388856,1.597,4806.9,4805.1,10.0]
[1755902390269,1.597,4806.9,4805.8,0.021]
[1755902391763,1.597,4806.9,4806.8,0.124]
[1755902394856,1.598,4807.8,4806.8,21.498]
[1755902395051,1.598,4807.8,4807.5,0.104]
[1755902396592,4.2,4807.7,4807.5,0.104]
[1755902397365,11.2,4807.7,4806.8,0.021]
[1755902397588,11.2,4807.7,4807.2,0.104]
[1755902398497,15.218,4807.7,4807.2,0.104]
[1755902400192,11.2,4807.7,4806.8,0.021]
[1755902400509,11.2,4807.7,4807.6,0.104]
[1755902403530,11.2,4807.7,4806.9,0.02080342]
[1755902403678,11.2,4807.7,4807.6,0.5547]
[1755902403883,11.2,4807.7,4807.6,30.3975]
[1755902404084,11.2,4807.7,4807.6,27.0032]
[1755902404604,11.2,4807.7,4807.6,29.5942]
[1755902404816,11.2,4807.7,4807.6,30.8482]
[1755902405482,11.2,4808.6,4807.6,30.8482]
[1755902405677,0.002,4808.7,4807.7,30.47149996]
[1755902405920,0.002,4808.7,4808.6,0.2935]
[1755902406121,0.002,4808.7,4808.6,15.0765]
[1755902406434,0.002,4808.7,4808.6,15.5272]
[1755902407132,0.002,4808.7,4808.6,30.7442]
[1755902407514,0.002,4808.7,4808.6,30.8482]
[1755902408686,0.002,4808.7,4808.6,34.8252]
[1755902408887,0.002,4808.7,4808.6,30.8482]
[1755902409114,0.002,4808.7,4808.6,34.8242]
[1755902409593,0.002,4808.7,4808.6,30.8482]
[1755902409827,0.002,4808.7,4808.6,0.104]
[1755902410027,0.002,4808.7,4808.6,30.8482]
[1755902411629,0.002,4808.7,4808.6,34.8172]
[1755902411799,0.002,4808.7,4808.6,34.7132]
[1755902411995,0.002,4808.7,4808.6,34.8172]
[1755902413130,0.002,4808.7,4808.6,4.8172]
[1755902413814,0.002,4808.7,4808.6,6.7252]
[1755902414018,0.002,4808.7,4808.6,36.7252]
[1755902414222,0.002,4808.7,4808.6,32.7562]
[1755902414395,0.002,4808.7,4808.6,36.7142]
[1755902416105,0.002,4808.7,4808.6,41.7092]
[1755902418014,0.002,4809.9,4809.3,1.908]
[1755902418209,0.002,4809.9,4809.8,0.2922]
[1755902418416,0.002,4809.9,4809.8,35.9352]
[1755902418757,0.002,4809.9,4809.8,36.92]
[1755902418949,0.002,4809.9,4809.8,37.024]
[1755902423746,0.002,4809.9,4809.8,0.104]
[1755902423747,12.90971222,4809.9,4809.8,0.104]
[1755902423947,12.90971222,4809.9,4808.8,0.02]
[1755902423948,0.66,4809.8,4808.8,0.02]
[1755902424158,12.90771222,4809.2,4808.8,0.02]
[1755902425041,1.597,4809.4,4808.8,0.02]
[1755902425254,0.002,4809.9,4808.8,0.02]
[1755902425457,0.002,4809.9,4808.9,30.0]
[1755902426443,0.002,4809.9,4808.9,33.952]
[1755902426642,0.002,4809.9,4809.0,27.697]
[1755902428238,0.002,4809.9,4809.0,8.977]
[1755902428459,0.002,4809.9,4808.6,3.941]
[1755902428757,0.002,4809.9,4808.7,30.0]
[1755902431153,11.2,4809.8,4808.7,30.0]
[1755902434167,4.2,4809.7,4808.8,2.0268]
[1755902434329,4.2,4809.7,4808.9,44.3528]
[1755902434530,4.2,4809.7,4809.0,30.0]
[1755902434830,4.2,4809.7,4809.0,30.4288]
[1755902435164,4.2,4809.7,4809.1,30.0]
[1755902436025,4.2,4809.7,4809.6,0.2922]
[1755902436332,0.002,4809.9,4809.7,30.0]
[1755902436533,0.002,4809.9,4809.8,4.2072]
[1755902436762,0.002,4809.9,4809.8,34.636]
[1755902440157,0.002,4809.9,4808.6,0.001]
[1755902440366,0.002,4809.9,4808.7,30.0]
[1755902440563,0.002,4809.9,4808.8,3.904]
[1755902440772,0.002,4809.9,4808.9,40.0]
[1755902440957,0.002,4809.9,4808.9,30.0]
[1755902441550,0.002,4809.9,4809.0,4.35259434]
[1755902441740,0.002,4809.9,4809.1,40.0]
[1755902441936,0.002,4809.9,4809.2,3.92079347]
[1755902442149,0.002,4809.9,4809.3,10.0]
[1755902442356,0.002,4809.9,4809.2,3.897]
[1755902444376,0.002,4809.9,4808.6,0.001]
[1755902444377,0.66,4809.2,4808.6,0.001]
[1755902446047,0.66,4809.0,4808.6,0.001]
[1755902446241,3.91,4809.1,4808.6,0.001]
[1755902446242,1.598,4808.9,4808.6,0.001]
[1755902446442,3.908,4809.1,4808.6,0.001]
[1755902446643,1.598,4809.6,4808.6,0.001]
[1755902446865,1.598,4809.6,4808.7,16.813]
[1755902447270,1.598,4809.6,4808.8,0.0207952]
[1755902447471,0.002,4809.9,4809.5,0.2922]
[1755902447655,0.002,4809.9,4809.6,13.0388]
[1755902447861,0.002,4809.9,4809.7,26.101]
[1755902448092,0.002,4809.9,4809.7,26.5561]
[1755902448392,0.002,4809.9,4809.7,0.4551]
[1755902448592,0.002,4809.9,4809.8,30.78479088]
[1755902448758,0.002,4809.9,4809.8,30.764]
[1755902449459,0.002,4809.9,4809.8,34.666]
[1755902449891,0.002,4809.9,4809.8,7.567]
[1755902450066,0.002,4809.9,4809.1,1.598]
[1755902450261,0.002,4809.9,4809.2,24.736]
[1755902451291,0.002,4809.9,4809.1,1.598]
[1755902451483,0.002,4809.9,4809.2,19.615]
[1755902452071,0.002,4809.9,4809.2,18.068]
[1755902452272,0.002,4809.9,4809.1,1.598]
[1755902452477,0.002,4809.9,4809.2,40.4551]
[1755902452794,0.002,4809.9,4809.3,30.0]
[1755902453334,0.002,4809.9,4809.4,3.891]
[1755902453615,0.002,4809.9,4809.5,40.0]
[1755902453776,0.002,4809.9,4809.5,30.0]
[1755902454200,0.002,4809.9,4809.6,0.4551]
[1755902454508,0.002,4809.9,4809.8,0.104]
[1755902460735,4.202,4809.9,4809.8,30.868]
[1755902460940,0.002,4809.9,4809.8,30.868]
[1755902461088,0.002,4810.4,4809.8,30.868]
[1755902461287,0.002,4810.4,4809.9,30.4551]
[1755902461487,0.002,4810.4,4810.3,0.4129]
[1755902461694,0.002,4810.4,4810.3,8.1969]
[1755902461894,0.002,4810.4,4810.3,17.215]
[1755902462145,0.002,4810.4,4810.3,18.943]
[1755902462326,0.002,4810.4,4810.3,30.868]
[1755902462830,0.002,4810.4,4810.3,24.821]
[1755902463024,0.002,4810.4,4810.3,30.868]
[1755902463229,0.002,4810.4,4810.3,34.724]
[1755902466743,0.002,4810.4,4809.8,0.02]
[1755902466910,0.002,4810.4,4810.1,0.104]
[1755902467245,0.002,4810.4,4809.8,0.02]
[1755902467246,0.662,4810.4,4809.8,0.02]
[1755902467419,0.66,4809.4,4808.1,0.001]
[1755902467626,0.002,4810.4,4808.1,0.001]
[1755902467627,13.32077197,4808.9,4808.1,0.001]
[1755902470444,12.91792956,4808.9,4808.1,0.001]
[1755902470931,3.841,4809.0,4808.1,0.001]
[1755902471443,3.834,4808.9,4808.1,0.001]
[1755902472759,11.7207132,4809.1,4808.1,0.001]
[1755902472960,3.834,4809.0,4808.3,0.4551]
[1755902473430,3.834,4809.0,4808.8,0.4751]
[1755902473644,3.834,4809.0,4808.1,0.001]
[1755902473817,1.598,4809.1,4808.1,0.001]
[1755902474008,3.829,4809.0,4808.1,0.001]
[1755902475411,1.598,4809.9,4808.7,0.4551]
[1755902475633,3.822,4809.8,4808.9,0.3089]
[1755902476014,0.66,4809.7,4808.1,0.001]
[1755902476213,0.66,4809.7,4808.2,0.4551]
[1755902476413,3.831,4809.6,4808.6,0.4561]
[1755902477349,1.598,4809.9,4809.3,0.104]
[1755902477647,3.828,4809.8,4809.3,0.104]
[1755902477946,0.66,4809.7,4809.3,0.104]
[1755902478518,0.66,4809.7,4808.6,0.001]
[1755902478718,0.104,4809.5,4808.9,0.104]
[1755902479817,0.104,4809.5,4808.6,0.001]
[1755902480019,0.104,4809.5,4808.6,0.105]
[1755902480418,3.823,4809.4,4808.6,0.105]
[1755902480912,3.822,4809.3,4808.6,0.105]
[1755902482250,0.104,4809.1,4808.6,0.001]
[1755902482955,3.92,4809.1,4808.6,0.001]
[1755902484135,10.1227132,4808.8,4808.6,0.001]
[1755902484931,0.104,4808.7,4808.6,0.001]
[1755902487943,3.802,4808.7,4808.6,0.764]
[1755902488328,1.702,4809.0,4808.6,0.764]
[1755902488550,3.802,4808.9,4808.7,0.4467]
[1755902488757,3.802,4808.9,4808.6,0.001]
[1755902488958,3.802,4808.9,4808.6,0.4477]
[1755902490262,4.2,4808.8,4808.6,0.001]
[1755902490444,4.21172016,4808.8,4808.7,0.4467]
[1755902490646,4.2,4808.8,4808.7,30.763]
[1755902491460,4.2,4808.8,4808.7,30.867]
[1755902491664,4.2,4808.8,4808.7,0.867]
[1755902492929,4.2,4808.8,4808.7,30.867]
[1755902495070,3.9501852,4808.8,4808.7,30.867]
[1755902498879,3.45064097,4808.8,4808.7,30.867]
[1755902499258,3.45264097,4809.8,4808.7,32.115]
[1755902499456,3.45264097,4809.8,4809.7,0.104]
[1755902499706,3.45264097,4809.8,4809.7,34.1933]
[1755902499988,3.45264097,4809.8,4809.7,34.64]
[1755902502156,0.002,4809.8,4809.7,34.64]
[1755902503812,0.002,4809.8,4809.7,4.64]
[1755902503964,0.002,4809.8,4809.7,34.64]
[1755902504167,0.002,4809.8,4809.7,36.444]
[1755902505172,0.662,4813.4,4810.1,1.248]
[1755902505495,0.002,4812.3,4811.2,0.3163]
[1755902505698,0.002,4812.3,4811.2,34.524]
[1755902507766,16.36120012,4811.3,4809.4,0.4467]
[1755902507979,0.01172016,4811.2,4809.5,33.755]
[1755902508179,3.76672016,4811.2,4809.6,30.0]
[1755902508702,0.01172016,4811.2,4809.6,29.8]
[1755902509020,0.01172016,4811.2,4809.6,30.0]
[1755902509175,0.01172016,4811.2,4809.7,0.443]
[1755902509371,0.01172016,4811.2,4809.8,43.763]
[1755902509566,3.45064097,4811.3,4809.9,30.02079045]
[1755902509771,0.01172016,4811.2,4810.0,30.0]
[1755902510009,0.01172016,4811.2,4810.1,3.762]
[1755902510312,0.01172016,4811.2,4810.2,40.0]
[1755902510470,0.01172016,4811.2,4810.2,30.0]
[1755902510670,0.01172016,4811.2,4810.3,0.443]
[1755902510902,0.01172016,4811.2,4810.4,43.762]
[1755902511079,0.01172016,4811.2,4810.5,30.0]
[1755902511279,3.45064097,4811.3,4811.2,11.233]
[1755902511480,3.45064097,4811.3,4810.9,30.0]
[1755902512990,3.45264097,4811.3,4810.9,30.0]
[1755902514186,3.45264097,4811.3,4811.2,0.104]
[1755902514393,3.45264097,4811.3,4811.2,30.104]
[1755902518804,3.45264097,4811.3,4811.2,34.1451]
[1755902519001,3.45264097,4811.3,4811.2,34.5881]
[1755902523723,3.45264097,4811.3,4811.2,4.5881]
[1755902525141,3.2029639,4811.3,4811.2,34.5881]